bitfinex-derivatives/quotes_BTCF0:USTF0_20241227
["timestamp","ask_amount","ask_price","bid_price","bid_amount"]
[1735326737015,0.00758748,94531.0,94530.0,1.913769]
[1735326737198,0.00458748,94531.0,94530.0,1.913769]
[1735326737811,0.00558748,94531.0,94530.0,1.913769]
[1735326738112,0.00558748,94531.0,94530.0,0.3608]
[1735326738307,0.05555648,94531.0,94530.0,0.3608]
[1735326738498,0.05555648,94531.0,94530.0,0.3618]
[1735326738706,0.00258748,94531.0,94530.0,1.8618]
[1735326739908,0.00258748,94531.0,94530.0,1.8608]
[1735326740107,0.00258748,94531.0,94530.0,1.8618]
[1735326740504,0.00258748,94531.0,94530.0,1.8608]
[1735326740703,0.00258748,94531.0,94530.0,1.8628]
[1735326741214,0.00258748,94531.0,94530.0,1.8618]
[1735326741711,0.00258748,94531.0,94530.0,1.8608]
[1735326741909,0.00258748,94531.0,94530.0,1.8628]
[1735326742909,0.00158748,94531.0,94530.0,1.8628]
[1735326743116,0.00258748,94531.0,94530.0,1.8628]
[1735326743709,0.00158748,94531.0,94530.0,1.8608]
[1735326744015,0.00258748,94531.0,94530.0,1.8618]
[1735326744417,0.00258748,94531.0,94530.0,1.8628]
[1735326744919,0.00258748,94531.0,94530.0,1.8608]
[1735326745215,0.00258748,94531.0,94530.0,0.3618]
[1735326746514,0.00258748,94531.0,94530.0,0.3608]
[1735326747513,0.00158748,94531.0,94530.0,0.3608]
[1735326747713,0.00258748,94531.0,94530.0,0.3628]
[1735326748211,0.00258748,94531.0,94530.0,0.3618]
[1735326748822,0.001,94531.0,94530.0,0.3618]
[1735326749123,0.19008632,94542.0,94540.0,0.052964]
[1735326749421,0.19008632,94542.0,94541.0,0.3608]
[1735326749821,0.18333629,94542.0,94541.0,0.7363]
[1735326750123,0.18333629,94542.0,94541.0,0.4363]
[1735326750321,0.18333629,94548.0,94541.0,2.2363]
[1735326750513,0.18333629,94548.0,94547.0,0.41376]
[1735326751114,0.18333629,94548.0,94547.0,1.91376]
[1735326751710,0.005,94548.0,94547.0,1.91376]
[1735326752821,0.006,94548.0,94547.0,1.91376]
[1735326753222,0.001,94548.0,94547.0,1.91376]
[1735326753422,0.006,94548.0,94547.0,1.91376]
[1735326761320,0.006,94548.0,94547.0,0.3608]
[1735326761522,0.006,94548.0,94541.0,0.37157301]
[1735326761722,0.12616,94547.0,94541.0,0.37157301]
[1735326761929,0.1103,94547.0,94544.0,0.052961]
[1735326763826,0.1133,94547.0,94544.0,0.052961]
[1735326764026,0.1143,94547.0,94544.0,0.052961]
[1735326765431,0.1143,94547.0,94546.0,0.05296]
[1735326766017,0.0771,94547.0,94546.0,0.05296]
[1735326766321,0.004,94547.0,94546.0,0.05296]
[1735326766724,0.001,94547.0,94546.0,0.05296]
[1735326766920,0.005,94547.0,94546.0,0.05296]
[1735326771721,0.005,94547.0,94546.0,0.24294928]
[1735326773237,0.005,94547.0,94546.0,0.05296]
[1735326775837,1e-08,94547.0,94546.0,0.05296]
[1735326776138,1e-08,94547.0,94546.0,1.55296]
[1735326780739,1e-08,94547.0,94546.0,0.05296]
[1735326781130,1e-08,94547.0,94546.0,0.41135305]
[1735326781535,0.10737817,94560.0,94546.0,0.41135305]
[1735326781738,0.052956,94554.0,94546.0,0.41135305]
[1735326781941,0.052956,94554.0,94553.0,0.3608]
[1735326783741,0.056956,94554.0,94553.0,0.3608]
[1735326784247,0.056956,94554.0,94553.0,0.3618]
[1735326786346,0.356956,94554.0,94553.0,0.001]
[1735326786645,0.356956,94554.0,94534.0,0.3608]
[1735326786646,0.05296,94546.0,94544.0,0.18179672]
[1735326786846,0.052964,94540.0,94539.0,0.19149789]
[1735326788734,0.052964,94540.0,94539.0,0.14509789]
[1735326789245,0.353964,94540.0,94539.0,0.14509789]
[1735326789548,0.353964,94540.0,94534.0,0.3608]
[1735326789549,0.052967,94535.0,94534.0,0.3608]
[1735326791049,0.21127281,94535.0,94534.0,0.3618]
[1735326792050,0.052967,94535.0,94534.0,0.3618]
[1735326797163,0.052967,94535.0,94534.0,0.001]
[1735326800052,0.352967,94535.0,94524.0,0.3608]
[1735326800248,0.052972,94525.0,94524.0,0.3608]
[1735326802055,0.052972,94525.0,94524.0,0.3668]
[1735326804561,0.179317,94525.0,94524.0,0.3668]
[1735326804752,0.179317,94525.0,94524.0,0.006]
[1735326804958,0.052979,94514.0,94510.0,0.05298]
[1735326806053,0.053979,94514.0,94511.0,0.4397]
[1735326808063,0.001,94514.0,94513.0,0.052979]
[1735326808562,0.052975,94521.0,94520.0,0.052975]
[1735326809755,0.053975,94521.0,94520.0,0.058975]
[1735326813259,0.053975,94521.0,94520.0,0.006]
[1735326821678,0.37219062,94528.0,94520.0,0.006]
[1735326821679,0.36144,94528.0,94520.0,0.3668]
[1735326821871,0.25357222,94522.0,94520.0,0.3668]
[1735326822173,0.052974,94522.0,94521.0,0.052974]
[1735326822376,0.052974,94522.0,94520.0,0.3668]
[1735326822676,0.052974,94522.0,94520.0,0.37141213]
[1735326822869,0.052974,94522.0,94520.0,0.37841213]
[1735326823378,0.27459541,94522.0,94520.0,0.37841213]
[1735326824379,0.27559541,94522.0,94521.0,0.007]
[1735326824769,0.16692141,94522.0,94520.0,0.42438713]
[1735326824971,0.05532141,94522.0,94520.0,0.43138713]
[1735326825576,0.05532141,94522.0,94521.0,0.059974]
[1735326825577,0.001,94522.0,94521.0,0.059974]
[1735326825981,0.19003358,94525.0,94520.0,0.37141213]
[1735326826165,0.19003358,94525.0,94524.0,0.052973]
[1735326826571,0.19003358,94525.0,94520.0,0.37841213]
[1735326826772,0.17970955,94522.0,94520.0,0.37841213]
[1735326827186,0.12673555,94522.0,94520.0,0.43138713]
[1735326827567,0.12673555,94522.0,94520.0,0.42438713]
[1735326827773,0.12773555,94522.0,94521.0,0.007]
[1735326828282,0.001,94522.0,94520.0,0.43138713]
[1735326829276,0.15841944,94526.0,94525.0,0.052972]
[1735326829582,0.15841944,94526.0,94525.0,1.552972]
[1735326829977,0.19003358,94531.0,94530.0,0.052969]
[1735326830186,0.15846458,94530.0,94525.0,1.50076]
[1735326830373,0.15846458,94530.0,94529.0,0.05297]
[1735326831476,0.052964,94540.0,94533.0,0.052967]
[1735326831675,0.052964,94540.0,94534.0,0.3955]
[1735326831983,0.052964,94540.0,94535.0,0.052967]
[1735326832684,0.19003358,94536.0,94535.0,0.052967]
[1735326833085,0.19003358,94536.0,94535.0,0.123167]
[1735326833885,0.19003358,94536.0,94534.0,0.3608]
[1735326833886,0.24299958,94536.0,94534.0,0.3608]
[1735326834078,0.052966,94536.0,94534.0,0.3608]
[1735326834274,0.052966,94536.0,94534.0,0.001]
[1735326834585,0.3,94536.0,94512.0,0.3608]
[1735326834772,0.10737817,94522.0,94512.0,0.3608]
[1735326834978,0.052979,94513.0,94512.0,0.3608]
[1735326835379,0.051979,94513.0,94512.0,0.3608]
[1735326836488,0.051979,94513.0,94512.0,0.3628]
[1735326836989,0.051979,94513.0,94512.0,0.3718]
[1735326837197,0.24201258,94513.0,94512.0,0.3718]
[1735326837487,0.24301258,94513.0,94512.0,0.3718]
[1735326838583,0.052979,94513.0,94512.0,0.3718]
[1735326839482,0.001,94513.0,94512.0,0.3718]
[1735326844286,0.001,94513.0,94512.0,1.8718]
[1735326845487,0.001,94513.0,94512.0,1.9071]
[1735326851796,0.19103358,94513.0,94512.0,1.9071]
[1735326852901,0.001,94513.0,94512.0,1.9071]
[1735326855098,0.001,94513.0,94512.0,0.3718]
[1735326855502,0.001,94513.0,94512.0,1.8718]
[1735326862807,0.001,94513.0,94512.0,0.3718]
[1735326863707,0.052974,94521.0,94512.0,0.3668]
[1735326863902,0.052974,94521.0,94520.0,0.3608]
[1735326865423,0.053974,94521.0,94520.0,0.3608]
[1735326868325,0.001,94521.0,94520.0,0.3608]
[1735326869517,0.22253416,94521.0,94520.0,0.3608]
[1735326870831,0.001,94521.0,94520.0,1.8608]
[1735326872928,0.19123736,94521.0,94520.0,0.3608]
[1735326874126,0.001,94521.0,94520.0,0.3608]
[1735326878530,0.001,94521.0,94520.0,0.413774]
[1735326878930,0.19128739,94521.0,94520.0,0.413774]
[1735326879132,0.19128739,94521.0,94520.0,1.913774]
[1735326880338,0.24326139,94521.0,94520.0,0.3608]
[1735326880541,0.052974,94521.0,94520.0,0.3608]
[1735326880929,0.053974,94521.0,94520.0,0.3608]
[1735326881436,0.052974,94521.0,94520.0,0.3608]
[1735326881738,0.24426139,94521.0,94520.0,0.3608]
[1735326884638,0.053974,94521.0,94520.0,0.3608]
[1735326898040,0.001,94521.0,94520.0,0.3608]
[1735326899552,0.19024565,94526.0,94520.0,0.3608]
[1735326899751,0.15852456,94522.0,94521.0,0.052974]
[1735326901053,0.19024565,94526.0,94520.0,0.3608]
[1735326901245,0.052974,94521.0,94520.0,0.3608]
[1735326902645,0.052974,94521.0,94517.0,0.052976]
[1735326902846,0.052974,94521.0,94520.0,0.3608]
[1735326903463,0.052974,94521.0,94520.0,0.413774]
[1735326903752,0.19024565,94524.0,94520.0,0.3608]
[1735326903956,0.19024565,94524.0,94523.0,0.052972]
[1735326904758,0.02614565,94526.0,94525.0,0.052971]
[1735326905056,0.00158732,94540.0,94539.0,0.052963]
[1735326905358,0.00158732,94540.0,94539.0,0.3608]
[1735326905654,0.05297,94528.0,94525.0,1.86156]
[1735326905851,0.05297,94527.0,94525.0,0.3608]
[1735326906054,0.12467,94527.0,94525.0,0.3608]
[1735326906551,0.12467,94527.0,94525.0,0.61455559]
[1735326907055,0.002,94526.0,94525.0,0.61455559]
[1735326907457,0.002,94526.0,94525.0,0.3608]
[1735326907756,0.12767,94527.0,94525.0,0.3608]
[1735326908250,0.004,94526.0,94525.0,0.3608]
[1735326909862,0.12867,94527.0,94525.0,0.3608]
[1735326911060,0.004,94526.0,94525.0,0.3608]
[1735326911359,0.052981,94508.0,94507.0,0.00076]
[1735326911553,0.052985,94501.0,94500.0,0.19055255]
[1735326912448,0.052989,94493.0,94492.0,0.37145402]
[1735326913846,0.052989,94493.0,94492.0,0.3618]
[1735326914153,0.053989,94493.0,94492.0,0.3708]
[1735326914554,0.054989,94493.0,94492.0,0.3788]
[1735326915159,0.002,94493.0,94492.0,0.3788]
[1735326915352,0.002,94493.0,94492.0,0.43179]
[1735326915753,0.002,94493.0,94492.0,1.93179]
[1735326916160,0.002,94493.0,94492.0,1.8788]
[1735326916358,0.002,94493.0,94492.0,0.3788]
[1735326917557,0.002,94493.0,94492.0,0.018]
[1735326919962,0.002,94493.0,94492.0,0.00224]
[1735326922664,0.002,94493.0,94492.0,1.50224]
[1735326922866,0.002,94493.0,94492.0,1.86304]
[1735326927675,0.002,94493.0,94492.0,0.36304]
[1735326928267,0.002,94493.0,94492.0,0.00224]
[1735326928477,0.052998,94478.0,94477.0,0.55135255]
[1735326929465,0.052998,94478.0,94477.0,0.3608]
[1735326929660,0.053998,94478.0,94477.0,0.3668]
[1735326931167,0.001,94478.0,94477.0,0.3668]
[1735326931367,0.001,94478.0,94477.0,0.419798]
[1735326931765,0.004,94478.0,94477.0,0.415798]
[1735326932581,0.006,94478.0,94477.0,0.413798]
[1735326932880,0.006,94478.0,94477.0,1.913798]
[1735326933276,0.001,94478.0,94477.0,1.8608]
[1735326933578,0.053998,94478.0,94477.0,0.3608]
[1735326934380,0.054998,94478.0,94477.0,0.3608]
[1735326935780,0.055998,94478.0,94477.0,0.3608]
[1735326936172,0.056998,94478.0,94477.0,0.3608]
[1735326936676,0.004,94478.0,94477.0,0.3608]
[1735326937071,0.002,94478.0,94477.0,0.3608]
[1735326937267,0.003,94478.0,94477.0,0.3608]
[1735326937464,0.006,94478.0,94477.0,0.3608]
[1735326938080,0.004,94478.0,94477.0,0.3608]
[1735326938275,0.18960822,94496.0,94478.0,0.052997]
[1735326938483,0.052989,94493.0,94492.0,0.3608]
[1735326939980,0.059989,94493.0,94492.0,0.3608]
[1735326940480,0.055989,94493.0,94492.0,0.3608]
[1735326940676,0.057989,94493.0,94492.0,0.3608]
[1735326942080,0.054989,94493.0,94492.0,0.3608]
[1735326942677,0.056989,94493.0,94492.0,0.3608]
[1735326943286,0.054989,94493.0,94492.0,0.3608]
[1735326943487,0.056989,94493.0,94492.0,0.3608]
[1735326945973,0.054989,94493.0,94492.0,0.3608]
[1735326946178,0.057989,94493.0,94492.0,0.3608]
[1735326946790,0.052994,94484.0,94483.0,0.19055255]
[1735326946984,0.052994,94484.0,94482.0,0.19055255]
[1735326947174,0.0316,94483.0,94482.0,0.19055255]
[1735326948288,0.0316,94483.0,94477.0,0.413798]
[1735326948482,0.0316,94483.0,94477.0,0.3608]
[1735326948788,0.052998,94478.0,94477.0,0.3608]
[1735326950589,0.054998,94478.0,94477.0,0.3608]
[1735326951187,0.052998,94478.0,94477.0,0.3608]
[1735326951388,0.054998,94478.0,94477.0,0.3608]
[1735326951992,0.057998,94478.0,94477.0,0.3608]
[1735326953694,0.057998,94478.0,94477.0,1.8608]
[1735326954092,0.057998,94478.0,94477.0,0.3608]
[1735326954692,0.005,94478.0,94459.0,0.55135255]
[1735326954996,0.053008,94460.0,94459.0,0.55135255]
[1735326955901,0.053008,94460.0,94459.0,0.3608]
[1735326956394,0.054008,94460.0,94459.0,0.3638]
[1735326959406,0.001,94460.0,94459.0,0.3638]
[1735326959996,0.001,94460.0,94459.0,1.8638]
[1735326966099,0.001,94460.0,94459.0,0.3638]
[1735326969701,0.001,94460.0,94459.0,0.003]
[1735326969906,0.053013,94450.0,94449.0,0.19055255]
[1735326970503,0.001,94460.0,94456.0,0.19055255]
[1735326970702,0.001,94460.0,94457.0,0.3608]
[1735326971301,0.053008,94459.0,94457.0,0.3608]
[1735326972613,0.055008,94459.0,94457.0,0.3608]
[1735326972811,0.057008,94459.0,94457.0,0.3608]
[1735326979214,0.06740387,94459.0,94457.0,0.3608]
[1735326979714,0.004,94459.0,94457.0,0.413809]
[1735326980105,0.004,94459.0,94458.0,1.5]
[1735326980508,0.004,94459.0,94457.0,0.413809]
[1735326981011,0.002,94459.0,94457.0,0.413809]
[1735326981211,0.004,94459.0,94457.0,0.413809]
[1735326981618,0.002,94459.0,94457.0,0.413809]
[1735326981808,0.005,94459.0,94457.0,0.413809]
[1735326982219,0.002,94459.0,94457.0,0.413809]
[1735326982409,0.004,94459.0,94457.0,0.413809]
[1735326984713,0.004,94459.0,94457.0,0.66756459]
[1735326985217,0.004,94459.0,94458.0,0.3608]
[1735326985521,0.004,94459.0,94458.0,0.3941]
[1735326985711,0.004,94459.0,94458.0,0.64785559]
[1735326986508,0.053001,94472.0,94458.0,0.64785559]
[1735326986713,0.053001,94472.0,94471.0,0.3608]
[1735326988416,0.055001,94472.0,94471.0,0.3608]
[1735326989522,0.060001,94472.0,94471.0,0.3608]
[1735326990320,0.060001,94472.0,94466.0,0.19063591]
[1735326990321,0.053004,94467.0,94466.0,0.19063591]
[1735326990517,0.0664,94471.0,94463.0,0.25418121]
[1735326990719,0.053005,94464.0,94463.0,0.25418121]
[1735326991020,0.053005,94464.0,94452.0,0.38087444]
[1735326991021,0.053009,94458.0,94452.0,0.38087444]
[1735326991324,0.3608,94456.0,94440.0,0.44435351]
[1735326991511,0.10769915,94450.0,94440.0,0.44435351]
[1735326991821,0.0322,94449.0,94440.0,0.44435351]
[1735326992023,0.0322,94449.0,94441.0,0.19066135]
[1735326992813,0.053018,94442.0,94419.0,0.3608]
[1735326993014,0.053026,94428.0,94419.0,0.3608]
[1735326993421,0.3608,94432.0,94419.0,0.3608]
[1735326993616,0.0322,94427.0,94419.0,0.3608]
[1735326993813,0.05303,94420.0,94419.0,0.3608]
[1735326994415,0.05003,94420.0,94419.0,0.3608]
[1735326996015,0.05003,94420.0,94419.0,0.3648]
[1735326996919,0.14568384,94420.0,94419.0,0.3618]
[1735326997517,0.14568384,94420.0,94407.0,0.3608]
[1735326997518,0.053037,94408.0,94407.0,0.3608]
[1735326998419,0.053037,94408.0,94400.0,0.143041]
[1735326999223,0.054037,94408.0,94400.0,0.143041]
[1735326999721,0.053037,94408.0,94407.0,0.003]
[1735326999923,0.054037,94408.0,94407.0,0.003]
[1735327000625,0.054037,94408.0,94405.0,0.0708]
[1735327002122,0.054037,94408.0,94405.0,0.0678]
[1735327002430,0.054037,94408.0,94407.0,0.003]
[1735327003027,0.054037,94408.0,94405.0,0.0708]
[1735327003633,0.053037,94408.0,94405.0,0.0678]
[1735327003927,0.054037,94408.0,94407.0,0.003]
[1735327005724,0.053037,94408.0,94405.0,0.0708]
[1735327005927,0.054037,94408.0,94405.0,0.0708]
[1735327006322,0.001,94408.0,94405.0,0.123838]
[1735327006522,0.001,94408.0,94407.0,0.003]
[1735327006822,0.41439401,94413.0,94407.0,0.003]
[1735327007024,0.413834,94413.0,94408.0,0.053036]
[1735327007828,0.053034,94413.0,94408.0,0.053036]
[1735327008423,0.3608,94409.0,94405.0,0.0708]
[1735327008623,0.3608,94406.0,94405.0,0.0708]
[1735327008934,0.3608,94406.0,94385.0,0.05305]
[1735327009125,0.050041,94401.0,94389.0,0.0328]
[1735327009927,0.050041,94401.0,94400.0,0.094]
[1735327010238,0.051041,94401.0,94400.0,0.094]
[1735327012240,0.050041,94401.0,94400.0,0.09]
[1735327012534,0.051041,94401.0,94400.0,0.09]
[1735327012736,0.06167798,94401.0,94400.0,0.09]
[1735327013831,0.001,94401.0,94400.0,0.143041]
[1735327014237,0.36140001,94406.0,94400.0,0.09]
[1735327014440,0.3608,94406.0,94405.0,0.053038]
[1735327015442,0.3618,94406.0,94405.0,0.053038]
[1735327016032,0.3608,94406.0,94405.0,0.053038]
[1735327016233,0.3628,94406.0,94405.0,0.053038]
[1735327016925,0.002,94406.0,94405.0,0.3608]
[1735327017137,0.51867438,94427.0,94405.0,0.6608]
[1735327017138,0.15787438,94427.0,94405.0,0.6608]
[1735327017332,0.0740995,94421.0,94420.0,0.413828]
[1735327017526,0.0740995,94421.0,94420.0,1.913828]
[1735327017725,0.15787438,94427.0,94426.0,0.053024]
[1735327017930,0.3608,94438.0,94436.0,0.053019]
[1735327018440,0.15787438,94442.0,94441.0,0.053016]
[1735327019140,0.15787438,94442.0,94441.0,1.553016]
[1735327019336,0.00158899,94447.0,94441.0,1.5]
[1735327019540,0.00158899,94447.0,94446.0,0.053013]
[1735327021244,0.00658899,94447.0,94446.0,0.053013]
[1735327022344,0.01158899,94447.0,94446.0,0.054013]
[1735327022731,0.01,94447.0,94446.0,0.054013]
[1735327022929,0.005,94447.0,94446.0,0.053013]
[1735327023242,0.01,94447.0,94446.0,0.054013]
[1735327024537,0.011,94447.0,94446.0,0.054013]
[1735327024744,0.3608,94459.0,94446.0,0.054013]
[1735327024938,0.3608,94459.0,94458.0,0.053008]
[1735327025238,0.0338,94469.0,94462.0,0.053006]
[1735327025637,0.36136001,94472.0,94458.0,0.3608]
[1735327025845,0.15787438,94473.0,94460.0,0.10769915]
[1735327026042,0.15787438,94473.0,94466.0,0.3608]
[1735327026347,0.0345,94478.0,94470.0,0.053002]
[1735327028141,0.0375,94478.0,94470.0,0.053002]
[1735327028541,0.008,94472.0,94470.0,0.053002]
[1735327029148,0.0375,94478.0,94471.0,0.053001]
[1735327029451,0.0375,94478.0,94466.0,0.3608]
[1735327029758,0.0375,94478.0,94473.0,0.053]
[1735327030343,0.0345,94478.0,94473.0,0.053]
[1735327030544,0.0327,94479.0,94473.0,0.053]
[1735327031151,0.003,94478.0,94473.0,0.053]
[1735327031341,0.004,94478.0,94473.0,0.053]
[1735327031541,0.004,94478.0,94475.0,0.052999]
[1735327031846,0.0327,94479.0,94475.0,0.052999]
[1735327032048,0.0377,94479.0,94475.0,0.052999]
[1735327032440,0.0357,94479.0,94475.0,0.052999]
[1735327032644,0.002,94478.0,94475.0,0.052999]
[1735327032843,0.002,94478.0,94476.0,0.052998]
[1735327033148,0.0387,94479.0,94476.0,0.052998]
[1735327033346,0.091697,94479.0,94476.0,0.052998]
[1735327033746,0.004,94478.0,94476.0,0.052998]
[1735327034551,0.092697,94479.0,94476.0,0.052998]
[1735327034750,0.003,94478.0,94476.0,0.052998]
[1735327035248,0.089697,94479.0,94476.0,0.052998]
[1735327035553,0.004,94478.0,94476.0,0.052998]
[1735327037149,0.004,94479.0,94478.0,0.052998]
[1735327037849,0.052993,94486.0,94479.0,0.052997]
[1735327038050,0.3608,94484.0,94479.0,0.052997]
[1735327038648,0.3608,94484.0,94482.0,0.052995]
[1735327040350,0.3658,94484.0,94482.0,0.052995]
[1735327040751,0.052996,94481.0,94475.0,0.052999]
[1735327041042,0.3658,94484.0,94470.0,0.01180155]
[1735327041043,0.052999,94476.0,94470.0,0.01180155]
[1735327041248,0.0352,94475.0,94470.0,0.01084155]
[1735327041448,0.0352,94475.0,94468.0,0.053003]
[1735327041757,0.053001,94472.0,94468.0,0.053003]
[1735327041953,0.3608,94469.0,94461.0,0.00092]
[1735327042257,0.3608,94462.0,94444.0,0.053017]
[1735327042459,0.3608,94462.0,94431.0,0.3608]
[1735327042460,0.3608,94448.0,94438.0,0.05302]
[1735327042850,0.4312,94448.0,94438.0,0.05302]
[1735327044564,0.4312,94448.0,94447.0,0.00658813]
[1735327045261,0.4312,94448.0,94431.0,0.413824]
[1735327045262,0.4352,94448.0,94431.0,0.413824]
[1735327045458,0.053025,94430.0,94421.0,0.05303]
[1735327045860,0.053025,94430.0,94422.0,0.053029]
[1735327047064,0.054025,94430.0,94422.0,0.053029]
[1735327047856,0.054025,94430.0,94422.0,0.056029]
[1735327048355,0.054025,94430.0,94422.0,0.416829]
[1735327049357,0.054025,94430.0,94422.0,0.3638]
[1735327049558,0.054025,94430.0,94423.0,0.053028]
[1735327049753,0.001,94430.0,94422.0,0.3638]
[1735327049959,0.001,94430.0,94428.0,0.053025]
[1735327050563,0.001,94430.0,94422.0,0.3638]
[1735327050767,0.001,94430.0,94423.0,0.035]
[1735327051152,0.001,94430.0,94429.0,0.053025]
[1735327051361,0.3608,94448.0,94447.0,0.053015]
[1735327052058,0.00056001,94459.0,94458.0,0.053009]
[1735327052269,0.15787438,94460.0,94458.0,0.413809]
[1735327052654,0.36144,94472.0,94458.0,0.413809]
[1735327052655,0.36144,94472.0,94464.0,0.053006]
[1735327052861,0.053002,94471.0,94464.0,0.053006]
[1735327054864,0.006,94471.0,94470.0,0.053002]
[1735327055164,0.006,94471.0,94470.0,0.413802]
[1735327055470,0.01,94471.0,94470.0,0.413802]
[1735327055771,0.3608,94480.0,94470.0,0.413802]
[1735327055772,0.3608,94480.0,94479.0,0.052997]
[1735327056164,0.3608,94480.0,94479.0,1.552997]
[1735327057761,0.3728,94480.0,94479.0,0.054997]
[1735327058271,0.3728,94480.0,94479.0,1.554997]
[1735327058870,0.3688,94480.0,94479.0,1.553997]
[1735327059070,0.3658,94480.0,94479.0,0.053997]
[1735327059272,0.3658,94480.0,94479.0,0.06437069]
[1735327059968,0.3648,94480.0,94479.0,0.06337069]
[1735327060370,0.00214815,94491.0,94487.0,0.052993]
[1735327060672,0.3608,94488.0,94487.0,0.052993]
[1735327061462,0.3608,94488.0,94487.0,0.053993]
[1735327062070,0.3628,94488.0,94487.0,0.053993]
[1735327062965,0.3638,94488.0,94487.0,0.053993]
[1735327063369,0.00056001,94498.0,94487.0,0.3618]
[1735327063567,0.0342,94506.0,94488.0,0.14169915]
[1735327064073,0.0342,94506.0,94505.0,0.052983]
[1735327064869,0.0422,94506.0,94505.0,0.052983]
[1735327065879,0.0422,94506.0,94505.0,0.053983]
[1735327066377,0.0402,94506.0,94505.0,0.002]
[1735327068064,0.0402,94506.0,94495.0,0.3608]
[1735327068279,0.052983,94505.0,94495.0,0.3608]
[1735327068475,0.052987,94497.0,94488.0,0.052992]
[1735327068672,0.36140001,94501.0,94494.0,0.052989]
[1735327068873,0.3608,94501.0,94494.0,0.052989]
[1735327069672,0.3608,94501.0,94484.0,0.3608]
[1735327069673,0.3608,94501.0,94495.0,0.001]
[1735327070174,0.3608,94501.0,94499.0,0.052986]
[1735327070377,0.3678,94501.0,94499.0,0.052986]
[1735327070772,0.3608,94501.0,94499.0,0.052986]
[1735327070974,0.3678,94501.0,94499.0,0.052986]
[1735327071678,0.3678,94501.0,94495.0,0.001]
[1735327071877,0.052987,94499.0,94495.0,0.001]
[1735327072078,0.3678,94501.0,94495.0,0.001]
[1735327072079,0.37036001,94501.0,94495.0,0.002]
[1735327072270,0.3698,94501.0,94495.0,0.002]
[1735327072472,0.3698,94501.0,94495.0,0.001]
[1735327072671,0.3698,94501.0,94499.0,0.001]
[1735327073173,0.3698,94501.0,94495.0,0.002]
[1735327073770,0.3698,94501.0,94499.0,0.001]
[1735327073966,0.3698,94501.0,94499.0,0.053986]
[1735327075479,0.3688,94501.0,94499.0,0.054986]
[1735327076181,0.3688,94501.0,94499.0,0.053986]
[1735327076568,0.3618,94501.0,94499.0,0.053986]
[1735327076875,0.3688,94501.0,94499.0,0.054986]
[1735327081082,0.49464307,94501.0,94499.0,0.054986]
[1735327082373,0.3688,94501.0,94499.0,0.054986]
[1735327083690,0.05154233,94500.0,94499.0,0.002]
[1735327084492,0.052989,94494.0,94486.0,0.052993]
[1735327084686,0.3608,94491.0,94468.0,0.00158772]
[1735327084891,0.053001,94473.0,94468.0,0.00158772]
[1735327085295,0.053001,94473.0,94468.0,0.05459072]
[1735327085489,0.053002,94472.0,94468.0,0.30765017]
[1735327085691,0.413802,94472.0,94468.0,0.30765017]
[1735327086787,0.414802,94472.0,94468.0,0.30765017]
[1735327087183,0.05154233,94471.0,94468.0,0.05459072]
[1735327087587,0.08564233,94471.0,94468.0,0.05459072]
[1735327087790,0.08564233,94471.0,94460.0,0.053007]
[1735327087991,0.3608,94461.0,94450.0,0.01075593]
[1735327088180,0.3608,94461.0,94447.0,0.053015]
[1735327088385,0.3608,94461.0,94455.0,0.053011]
[1735327088893,0.053014,94450.0,94442.0,0.053018]
[1735327089196,0.053016,94447.0,94442.0,0.053018]
[1735327089984,0.36136001,94451.0,94436.0,0.01081097]
[1735327090185,0.3608,94451.0,94449.0,0.053014]
[1735327091589,0.05157155,94450.0,94449.0,0.053014]
[1735327092195,0.05157155,94450.0,94449.0,0.06368854]
[1735327092394,0.05157155,94450.0,94449.0,1.56368854]
[1735327092598,0.13462659,94460.0,94459.0,0.053009]
[1735327092796,0.15742229,94461.0,94452.0,0.3608]
[1735327093188,0.15742229,94461.0,94460.0,0.053008]
[1735327093988,0.1259229,94463.0,94460.0,1.5]
[1735327094288,0.1259229,94463.0,94461.0,0.053007]
[1735327095394,0.1259229,94463.0,94460.0,1.50096]
[1735327095395,0.36136001,94466.0,94465.0,0.053005]
[1735327095700,0.3608,94466.0,94465.0,0.053005]
[1735327096000,0.36140001,94475.0,94460.0,1.50092]
[1735327096001,0.00060001,94475.0,94474.0,0.053]
[1735327096192,0.00158809,94482.0,94474.0,0.053]
[1735327097598,0.00158809,94482.0,94461.0,0.3608]
[1735327097788,0.00158809,94482.0,94480.0,0.052996]
[1735327099302,0.00658809,94482.0,94480.0,0.052996]
[1735327100703,0.00658809,94482.0,94473.0,0.3608]
[1735327101199,0.053004,94468.0,94460.0,0.30698745]
[1735327101405,0.053004,94468.0,94460.0,0.31657564]
[1735327101599,0.053004,94468.0,94460.0,0.30606745]
[1735327102303,0.36140001,94474.0,94466.0,0.053004]
[1735327102499,0.3608,94474.0,94466.0,0.053004]
[1735327104305,0.15742229,94469.0,94467.0,0.053004]
[1735327104907,0.15742229,94469.0,94441.0,0.36238809]
[1735327105104,0.10769915,94460.0,94444.0,0.01073265]
[1735327105305,0.0319,94459.0,94455.0,0.053011]
[1735327106905,0.15742229,94456.0,94455.0,0.053011]
[1735327108208,0.05156852,94458.0,94455.0,0.053011]
[1735327109204,0.002,94456.0,94455.0,0.053011]
[1735327109604,0.002,94456.0,94445.0,0.3608]
[1735327109605,0.05356852,94458.0,94456.0,0.05301]
[1735327109805,0.05356852,94458.0,94457.0,1.5]
[1735327110711,0.002,94458.0,94457.0,1.5339]